[Event "28th CRO-chT 1A-Men 2019"]
[Site "Mali Losinj"]
[Date "2019.10.04"]
[Round "7.7"]
[White "Ponkratov, Pavel"]
[Black "Indjic, Aleksandar"]
[Result "0-1"]
[ECO "E01"]
[WhiteElo "2621"]
[BlackElo "2638"]
[Annotator "ChessBase"]
[PlyCount "102"]
[EventDate "2019.09.28"]
[EventType "team-tourn"]
[EventCountry "CRO"]
[SourceTitle "playchess.com"]
[Source "ChessBase"]
[SourceQuality "1"]
[TimeControl "40/5400+30:1800+30"]

1. d4 {[%emt 0:00:30]} d5 {[%emt 0:01:30]} 2. c4 {[%emt 0:00:30]} c6 {[%emt 0:00:30]} 3. Nf3 {[%emt 0:00:30]} Nf6 {[%emt 0:00:00]} 4. Nc3 {[%emt 0:00:30]} e6 {[%emt 0:01:00]} 5. g3 {[%emt 0:00:30]} Nbd7 {[%emt 0:02:30]} 6. Bg2 {[%emt 0:00:00]} dxc4 {[%emt 0:00:30]} 7. O-O {[%emt 0:00:00]} Bd6 {[%emt 0:02:30]} 8. Nd2 {[%emt 0:20:30]} Nb6 {[%emt 0:01:30]} 9. a4 {[%emt 0:01:30]} a5 {[%emt 0:00:30]} 10. e4 {[%emt 0:00:00]} e5 {[%emt 0:00:30]} 11. Nf3 {[%emt 0:09:00]} Nbd7 {[%emt 0:13:30]} 12. dxe5 {[%emt 0:14:30]} Nxe5 {[%emt 0:00:30]} 13. Bf4 {[%emt 0:00:00]} Nfg4 {[%emt 0:10:30]} 14. h3 {[%emt 0:10:00]} Nxf3+ {[%emt 0:00:30]} 15. Qxf3 {[%emt 0:00:30]} Ne5 {[%emt 0:00:30]} 16. Qe2 {[%emt 0:04:30]} Nd3 {[%emt 0:03:30]} 17. Be3 {[%emt 0:00:30]} Bb4 {[%emt 0:03:30]} 18. Qc2 {[%emt 0:01:30]} O-O {[%emt 0:00:30]} 19. Ne2 {[%emt 0:01:30]} b5 {[%emt 0:00:30]} 20. Nd4 {[%emt 0:06:30]} Qd7 {[%emt 0:01:30]} 21. Rfd1 {[%emt 0:04:30]} Ba6 {[%emt 0:01:30]} 22. Nxc6 {[%emt 0:09:03]} Qxc6 {[%emt 0:01:30]} 23. Rxd3 {[%emt 0:00:05]} bxa4 {[%emt 0:03:30]} 24. Rd5 {[%emt 0:01:07]} Bb7 {[%emt 0:02:30]} 25. Rdd1 {[%emt 0:06:46]} Rac8 {[%emt 0:16:30]} 26. Rxa4 {[%emt 0:00:52]} f5 {[%emt 0:00:30]} 27. Raa1 {[%emt 0:00:20]} fxe4 {[%emt 0:02:30]} 28. Rd4 {[%emt 0:01:20]} Rfe8 {[%emt 0:10:21]} 29. Rc1 {[%emt 0:00:06]} c3 {[%emt 0:02:53]} 30. bxc3 {[%emt 0:00:08]} Bc5 {[%emt 0:01:55]} 31. Rc4 {[%emt 0:04:53]} Qd5 {[%emt 0:00:13]} 32. Rxc5 {[%emt 0:02:45]} Rxc5 {[%emt 0:00:17]} 33. Bxc5 {[%emt 0:00:07]} Qxc5 {[%emt 0:00:00]} 34. Ra1 {[%emt 0:01:10]} Bd5 {[%emt 0:02:52]} 35. Qd2 {[%emt 0:00:25]} Bb3 {[%emt 0:03:30]} 36. Re1 {[%emt 0:00:40]} e3 {[%emt 0:04:44]} 37. Rxe3 {[%emt 0:00:05]} Rxe3 {[%emt 0:00:02]} 38. fxe3 {[%emt 0:00:06]} Be6 {[%emt 0:00:32]} 39. c4 {[%emt 0:01:12]} a4 {[%emt 0:00:44]} 40. Bd5 {[%emt 0:00:00]} Kf7 {[%emt 0:00:00]} 41. Qd3 {[%emt 0:04:50]} g6 {[%emt 0:02:57]} 42. Qe4 {[%emt 0:06:30]} Qd6 {[%emt 0:04:30]} 43. Bxe6+ {[%emt 0:06:09]} Qxe6 {[%emt 0:00:30]} 44. Qb7+ {[%emt 0:00:03]} Kf6 {[%emt 0:02:30]} 45. Qb2+ {[%emt 0:04:32]} Qe5 {[%emt 0:00:30]} 46. Qb6+ {[%emt 0:00:03]} Kf5 {[%emt 0:01:30]} 47. Kf2 {[%emt 0:08:56]} Qf6 {[%emt 0:05:30]} 48. c5 {[%emt 0:02:57]} Ke5+ {[%emt 0:01:30]} 49. Ke2 {[%emt 0:01:07]} Qxb6 {[%emt 0:00:30]} 50. cxb6 {[%emt 0:00:04]} Kd6 {[%emt 0:00:00]} 51. Kd3 {[%emt 0:00:52]} Ke5 {[%emt 0:00:00]} 0-1

[Event "28th CRO-chT 1A-Men 2019"]
[Site "Mali Losinj"]
[Date "2019.10.04"]
[Round "7.8"]
[White "Sertic, Rudolf"]
[Black "Martinovic, Sasa"]
[Result "1/2-1/2"]
[ECO "E40"]
[WhiteElo "2371"]
[BlackElo "2539"]
[Annotator "ChessBase"]
[PlyCount "112"]
[EventDate "2019.09.28"]
[EventType "team-tourn"]
[EventCountry "CRO"]
[SourceTitle "playchess.com"]
[Source "ChessBase"]
[SourceQuality "1"]
[TimeControl "40/5400+30:1800+30"]

1. d4 {[%emt 0:00:30]} Nf6 {[%emt 0:00:30]} 2. c4 {[%emt 0:00:00]} e6 {[%emt 0:00:00]} 3. Nc3 {[%emt 0:00:00]} Bb4 {[%emt 0:00:00]} 4. Nf3 {[%emt 0:00:00]} Bxc3+ {[%emt 0:00:00]} 5. bxc3 {[%emt 0:00:00]} d6 {[%emt 0:00:00]} 6. e3 {[%emt 0:00:30]} O-O {[%emt 0:06:30]} 7. Bd3 {[%emt 0:00:00]} Re8 {[%emt 0:05:30]} 8. O-O {[%emt 0:04:00]} Nc6 {[%emt 0:00:30]} 9. e4 {[%emt 0:00:30]} e5 {[%emt 0:00:30]} 10. Re1 {[%emt 0:09:30]} Bg4 {[%emt 0:02:30]} 11. Bb2 {[%emt 0:00:00]} Nd7 {[%emt 0:02:30]} 12. h3 {[%emt 0:00:00]} Bh5 {[%emt 0:01:30]} 13. g4 {[%emt 0:01:30]} Bg6 {[%emt 0:00:00]} 14. Nd2 {[%emt 0:00:30]} Ne7 {[%emt 0:07:00]} 15. d5 {[%emt 0:02:30]} Nc5 {[%emt 0:04:30]} 16. Bc2 {[%emt 0:07:30]} Nc8 {[%emt 0:09:30]} 17. Qe2 {[%emt 0:05:30]} Nb6 {[%emt 0:03:30]} 18. Ba3 {[%emt 0:02:30]} Nbd7 {[%emt 0:01:30]} 19. Qe3 {[%emt 0:05:30]} h5 {[%emt 0:08:30]} 20. Bxc5 {[%emt 0:09:30]} Nxc5 {[%emt 0:00:30]} 21. Nb3 {[%emt 0:00:30]} Nd7 {[%emt 0:02:30]} 22. Kg2 {[%emt 0:05:30]} a5 {[%emt 0:04:30]} 23. Nc1 {[%emt 0:07:30]} c6 {[%emt 0:12:30]} 24. Rb1 {[%emt 0:03:30]} Qc7 {[%emt 0:00:30]} 25. Rb2 {[%emt 0:03:30]} a4 {[%emt 0:06:30]} 26. a3 {[%emt 0:01:30]} Rec8 {[%emt 0:01:46]} 27. Ne2 {[%emt 0:00:00]} cxd5 {[%emt 0:08:09]} 28. cxd5 {[%emt 0:00:00]} Qc5 {[%emt 0:00:00]} 29. Qxc5 {[%emt 0:05:30]} Nxc5 {[%emt 0:00:17]} 30. f3 {[%emt 0:00:30]} Kf8 {[%emt 0:00:36]} 31. Rb4 {[%emt 0:01:30]} f6 {[%emt 0:01:55]} 32. Kf2 {[%emt 0:05:30]} Ke7 {[%emt 0:01:37]} 33. Reb1 {[%emt 0:00:30]} hxg4 {[%emt 0:03:29]} 34. hxg4 {[%emt 0:00:30]} Be8 {[%emt 0:00:07]} 35. Rh1 {[%emt 0:05:10]} Bd7 {[%emt 0:00:46]} 36. Rh7 {[%emt 0:00:06]} Kf7 {[%emt 0:01:08]} 37. Rb6 {[%emt 0:00:31]} Rh8 {[%emt 0:04:26]} 38. Rxh8 {[%emt 0:00:23]} Rxh8 {[%emt 0:00:01]} 39. Kg2 {[%emt 0:03:25]} Ke7 {[%emt 0:00:34]} 40. Ng3 {[%emt 0:00:00]} g6 {[%emt 0:00:00]} 41. Nf1 {[%emt 0:02:55]} Be8 {[%emt 0:14:35]} 42. Ne3 {[%emt 0:00:30]} Kd7 {[%emt 0:00:23]} 43. c4 {[%emt 0:10:30]} Kc7 {[%emt 0:06:58]} 44. Rb1 {[%emt 0:00:30]} Bd7 {[%emt 0:00:02]} 45. Kg3 {[%emt 0:01:30]} Rh7 {[%emt 0:03:55]} 46. Kg2 {[%emt 0:00:30]} Rh8 {[%emt 0:00:47]} 47. Kg3 {[%emt 0:00:00]} Rh7 {[%emt 0:00:04]} 48. Kg2 {[%emt 0:01:00]} b6 {[%emt 0:00:04]} 49. Rf1 {[%emt 0:05:30]} g5 {[%emt 0:04:27]} 50. Rb1 {[%emt 0:04:30]} Kb7 {[%emt 0:00:22]} 51. Rb4 {[%emt 0:02:43]} Ka6 {[%emt 0:01:21]} 52. Nd1 {[%emt 0:00:52]} Rh8 {[%emt 0:01:41]} 53. Nc3 {[%emt 0:00:13]} Ka5 {[%emt 0:00:26]} 54. Rb1 {[%emt 0:00:26]} Ka6 {[%emt 0:00:36]} 55. Kg3 {[%emt 0:00:16]} Ka5 {[%emt 0:00:15]} 56. Kg2 {[%emt 0:00:30]} Ka6 {[%emt 0:00:00]} 1/2-1/2

[Event "28th CRO-chT 1A-Men 2019"]
[Site "Mali Losinj"]
[Date "2019.10.04"]
[Round "7.9"]
[White "Cvitan, Ognjen"]
[Black "Biti, Ozren"]
[Result "1/2-1/2"]
[ECO "C41"]
[WhiteElo "2490"]
[BlackElo "2366"]
[Annotator "ChessBase"]
[PlyCount "39"]
[EventDate "2019.09.28"]
[EventType "team-tourn"]
[EventCountry "CRO"]
[SourceTitle "playchess.com"]
[Source "ChessBase"]
[SourceQuality "1"]
[TimeControl "40/5400+30:1800+30"]

1. d4 {[%emt 0:01:30]} d6 {[%emt 0:00:30]} 2. e4 {[%emt 0:00:30]} Nf6 {[%emt 0:00:00]} 3. Nc3 {[%emt 0:00:00]} e5 {[%emt 0:00:00]} 4. Nf3 {[%emt 0:00:00]} Nbd7 {[%emt 0:00:30]} 5. Bc4 {[%emt 0:00:30]} Be7 {[%emt 0:00:00]} 6. a4 {[%emt 0:00:00]} O-O {[%emt 0:00:00]} 7. O-O {[%emt 0:00:00]} a5 {[%emt 0:00:30]} 8. h3 {[%emt 0:00:30]} c6 {[%emt 0:00:00]} 9. Re1 {[%emt 0:00:00]} exd4 {[%emt 0:01:00]} 10. Qxd4 {[%emt 0:02:00]} Nb6 {[%emt 0:00:30]} 11. Ba2 {[%emt 0:04:30]} Nfd7 {[%emt 0:00:30]} 12. Bf4 {[%emt 0:04:30]} Nc5 {[%emt 0:00:30]} 13. Rad1 {[%emt 0:04:30]} Be6 {[%emt 0:00:30]} 14. Bxd6 {[%emt 0:09:30]} Qxd6 {[%emt 0:01:30]} 15. Qxd6 {[%emt 0:00:30]} Bxd6 {[%emt 0:00:00]} 16. Bxe6 {[%emt 0:00:30]} fxe6 {[%emt 0:01:00]} 17. Rxd6 {[%emt 0:00:30]} Nbxa4 {[%emt 0:06:30]} 18. Nxa4 {[%emt 0:01:30]} Nxa4 {[%emt 0:00:30]} 19. b3 {[%emt 0:16:30]} Nc5 {[%emt 0:00:30]} 20. Ne5 {[%emt 0:05:30]} 1/2-1/2

[Event "28th CRO-chT 1A-Men 2019"]
[Site "Mali Losinj"]
[Date "2019.10.04"]
[Round "7.10"]
[White "Ascic, Pero"]
[Black "Rogic, Davor"]
[Result "0-1"]
[ECO "C60"]
[WhiteElo "2318"]
[BlackElo "2492"]
[Annotator "ChessBase"]
[PlyCount "80"]
[EventDate "2019.09.28"]
[EventType "team-tourn"]
[EventCountry "CRO"]
[SourceTitle "playchess.com"]
[Source "ChessBase"]
[SourceQuality "1"]
[TimeControl "40/5400+30:1800+30"]

1. e4 {[%emt 0:02:30]} e5 {[%emt 0:00:30]} 2. Nf3 {[%emt 0:00:30]} Nc6 {[%emt 0:00:30]} 3. Bb5 {[%emt 0:00:00]} a6 {[%emt 0:00:30]} 4. Ba4 {[%emt 0:00:00]} Nge7 {[%emt 0:00:30]} 5. O-O {[%emt 0:13:30]} g6 {[%emt 0:00:30]} 6. c3 {[%emt 0:09:30]} b5 {[%emt 0:01:30]} 7. Bb3 {[%emt 0:06:30]} Bg7 {[%emt 0:00:30]} 8. a4 {[%emt 0:10:30]} Bb7 {[%emt 0:08:30]} 9. Qe2 {[%emt 0:18:30]} O-O {[%emt 0:03:30]} 10. Re1 {[%emt 0:00:30]} b4 {[%emt 0:07:30]} 11. a5 {[%emt 0:01:30]} h6 {[%emt 0:04:30]} 12. Rd1 {[%emt 0:07:30]} d5 {[%emt 0:06:30]} 13. d3 {[%emt 0:03:30]} Kh7 {[%emt 0:02:30]} 14. Nbd2 {[%emt 0:00:30]} Rb8 {[%emt 0:05:30]} 15. c4 {[%emt 0:04:30]} dxe4 {[%emt 0:06:30]} 16. dxe4 {[%emt 0:03:26]} Qd6 {[%emt 0:01:30]} 17. Nf1 {[%emt 0:05:39]} Nd4 {[%emt 0:00:30]} 18. Nxd4 {[%emt 0:01:27]} exd4 {[%emt 0:00:30]} 19. Bc2 {[%emt 0:04:56]} Qc5 {[%emt 0:04:30]} 20. Bd3 {[%emt 0:00:14]} Nc6 {[%emt 0:01:30]} 21. Bf4 {[%emt 0:00:20]} Rbc8 {[%emt 0:02:30]} 22. Qc2 {[%emt 0:00:35]} Nxa5 {[%emt 0:02:30]} 23. Nd2 {[%emt 0:00:09]} Rfe8 {[%emt 0:04:30]} 24. Bg3 {[%emt 0:01:07]} Re6 {[%emt 0:05:30]} 25. f3 {[%emt 0:00:59]} h5 {[%emt 0:01:30]} 26. Qa4 {[%emt 0:00:08]} Nc6 {[%emt 0:00:00]} 27. Nb3 {[%emt 0:00:06]} Qg5 {[%emt 0:04:00]} 28. Re1 {[%emt 0:02:49]} h4 {[%emt 0:01:30]} 29. Bf2 {[%emt 0:00:44]} Ne5 {[%emt 0:01:30]} 30. Be2 {[%emt 0:00:24]} c5 {[%emt 0:00:30]} 31. Nc1 {[%emt 0:00:15]} f5 {[%emt 0:04:42]} 32. Nd3 {[%emt 0:01:50]} Nxf3+ {[%emt 0:03:01]} 33. Bxf3 {[%emt 0:00:15]} fxe4 {[%emt 0:00:01]} 34. Be2 {[%emt 0:01:00]} exd3 {[%emt 0:01:22]} 35. Bf1 {[%emt 0:00:02]} Rcc6 {[%emt 0:06:08]} 36. Rxe6 {[%emt 0:00:26]} Rxe6 {[%emt 0:00:12]} 37. Qd7 {[%emt 0:00:03]} Re7 {[%emt 0:01:18]} 38. Qh3 {[%emt 0:00:44]} d2 {[%emt 0:02:49]} 39. Rd1 {[%emt 0:00:45]} Bh6 {[%emt 0:00:48]} 40. Qxh4 {[%emt 0:00:00]} Qxh4 {[%emt 0:00:00]} 0-1

[Event "28th CRO-chT 1A-Men 2019"]
[Site "Mali Losinj"]
[Date "2019.10.04"]
[Round "7.11"]
[White "Kovacevic, Vlatko"]
[Black "Drmic, Tomislav"]
[Result "1-0"]
[ECO "A84"]
[WhiteElo "2471"]
[BlackElo "2224"]
[Annotator "ChessBase"]
[PlyCount "85"]
[EventDate "2019.09.28"]
[EventType "team-tourn"]
[EventCountry "CRO"]
[SourceTitle "playchess.com"]
[Source "ChessBase"]
[SourceQuality "1"]
[TimeControl "40/5400+30:1800+30"]

1. d4 {[%emt 0:00:30]} d5 {[%emt 0:00:30]} 2. Bf4 {[%emt 0:00:30]} e6 {[%emt 0:00:30]} 3. e3 {[%emt 0:00:30]} f5 {[%emt 0:01:30]} 4. c4 {[%emt 0:01:30]} Nf6 {[%emt 0:00:30]} 5. Nc3 {[%emt 0:00:30]} Bd6 {[%emt 0:02:30]} 6. Bxd6 {[%emt 0:01:30]} Qxd6 {[%emt 0:00:30]} 7. Nf3 {[%emt 0:01:30]} O-O {[%emt 0:07:30]} 8. Bd3 {[%emt 0:00:30]} c6 {[%emt 0:03:30]} 9. O-O {[%emt 0:01:30]} Ne4 {[%emt 0:00:30]} 10. Qb3 {[%emt 0:07:30]} Kh8 {[%emt 0:11:30]} 11. a4 {[%emt 0:07:30]} Nd7 {[%emt 0:04:30]} 12. a5 {[%emt 0:00:30]} Rb8 {[%emt 0:05:30]} 13. Qa3 {[%emt 0:04:30]} Ndf6 {[%emt 0:05:30]} 14. Ne5 {[%emt 0:08:30]} Qxa3 {[%emt 0:02:30]} 15. Rxa3 {[%emt 0:00:30]} Nd6 {[%emt 0:08:30]} 16. Rb3 {[%emt 0:04:30]} dxc4 {[%emt 0:08:30]} 17. Bxc4 {[%emt 0:00:30]} Nxc4 {[%emt 0:00:30]} 18. Nxc4 {[%emt 0:00:30]} b6 {[%emt 0:04:30]} 19. Ne5 {[%emt 0:04:30]} c5 {[%emt 0:06:30]} 20. dxc5 {[%emt 0:14:30]} Ba6 {[%emt 0:00:30]} 21. Rd1 {[%emt 0:00:30]} bxc5 {[%emt 0:02:30]} 22. Rxb8 {[%emt 0:00:00]} Rxb8 {[%emt 0:00:00]} 23. Rd6 {[%emt 0:01:00]} Bb7 {[%emt 0:01:00]} 24. Rxe6 {[%emt 0:06:30]} h6 {[%emt 0:01:30]} 25. f3 {[%emt 0:00:30]} Bd5 {[%emt 0:01:38]} 26. Rd6 {[%emt 0:03:30]} Bg8 {[%emt 0:00:45]} 27. Rc6 {[%emt 0:05:30]} Rxb2 {[%emt 0:02:00]} 28. Rxc5 {[%emt 0:00:30]} Rc2 {[%emt 0:01:08]} 29. Ne4 {[%emt 0:04:30]} Rxc5 {[%emt 0:04:57]} 30. Nxc5 {[%emt 0:00:30]} Bd5 {[%emt 0:00:29]} 31. Kf2 {[%emt 0:01:44]} Kg8 {[%emt 0:02:47]} 32. Ke2 {[%emt 0:00:19]} Kf8 {[%emt 0:00:14]} 33. Kd3 {[%emt 0:00:45]} Ke7 {[%emt 0:00:24]} 34. Kd4 {[%emt 0:00:58]} Kd6 {[%emt 0:01:08]} 35. Ncd3 {[%emt 0:03:28]} Ne8 {[%emt 0:01:57]} 36. Nb4 {[%emt 0:05:08]} Bb7 {[%emt 0:03:46]} 37. Nc4+ {[%emt 0:01:53]} Ke6 {[%emt 0:00:52]} 38. Nd3 {[%emt 0:01:24]} Ba8 {[%emt 0:00:45]} 39. Nf4+ {[%emt 0:01:15]} Kf6 {[%emt 0:00:56]} 40. Nd5+ {[%emt 0:00:00]} Ke6 {[%emt 0:00:00]} 41. e4 {[%emt 0:01:36]} g5 {[%emt 0:02:44]} 42. Kc5 {[%emt 0:01:30]} Kd7 {[%emt 0:03:30]} 43. exf5 {[%emt 0:02:30]} 1-0

[Event "28th CRO-chT 1A-Men 2019"]
[Site "Mali Losinj"]
[Date "2019.10.04"]
[Round "7.12"]
[White "Vargic, Drago"]
[Black "Muse, Mladen"]
[Result "1/2-1/2"]
[ECO "B15"]
[WhiteElo "2273"]
[BlackElo "2387"]
[Annotator "NA"]
[PlyCount "26"]
[EventDate "2019.09.28"]
[EventType "team-tourn"]
[EventCountry "CRO"]
[SourceTitle "playchess.com"]
[Source "ChessBase"]
[SourceQuality "1"]
[TimeControl "40/5400+30:1800+30"]

1. e4 {[%emt 0:00:30]} g6 {[%emt 0:00:30]} 2. d4 {[%emt 0:00:00]} Bg7 {[%emt 0:00:00]} 3. Nc3 {[%emt 0:00:00]} c6 {[%emt 0:00:00]} 4. Nf3 {[%emt 0:04:30]} d5 {[%emt 0:00:30]} 5. exd5 {[%emt 0:04:30]} cxd5 {[%emt 0:00:30]} 6. Bf4 {[%emt 0:00:00]} Nf6 {[%emt 0:04:30]} 7. Qd2 {[%emt 0:02:00]} O-O {[%emt 0:02:30]} 8. Bh6 {[%emt 0:01:30]} Nc6 {[%emt 0:11:30]} 9. Bxg7 {[%emt 0:01:30]} Kxg7 {[%emt 0:00:00]} 10. Ne5 {[%emt 0:08:30]} Be6 {[%emt 0:07:00]} 11. f3 {[%emt 0:10:30]} Rc8 {[%emt 0:05:30]} 12. Bb5 {[%emt 0:04:30]} Nxe5 {[%emt 0:07:30]} 13. dxe5 {[%emt 0:01:30]} Nd7 {[%emt 0:00:30]} 1/2-1/2

[Event "28th CRO-chT 1A-Men 2019"]
[Site "Mali Losinj"]
[Date "2019.10.04"]
[Round "7.13"]
[White "Saric, Ibro"]
[Black "Georgiev, Kiril"]
[Result "1/2-1/2"]
[ECO "E61"]
[WhiteElo "2564"]
[BlackElo "2577"]
[Annotator "ChessBase"]
[PlyCount "64"]
[EventDate "2019.09.28"]
[EventType "team-tourn"]
[EventCountry "CRO"]
[SourceTitle "playchess.com"]
[Source "ChessBase"]
[SourceQuality "1"]
[TimeControl "40/5400+30:1800+30"]

1. d4 {[%emt 0:00:30]} Nf6 {[%emt 0:04:30]} 2. c4 {[%emt 0:01:30]} g6 {[%emt 0:01:30]} 3. Nf3 {[%emt 0:05:30]} Bg7 {[%emt 0:00:30]} 4. e3 {[%emt 0:00:30]} O-O {[%emt 0:00:30]} 5. Be2 {[%emt 0:00:30]} c5 {[%emt 0:01:30]} 6. d5 {[%emt 0:02:30]} d6 {[%emt 0:00:00]} 7. Nc3 {[%emt 0:01:30]} e6 {[%emt 0:00:00]} 8. O-O {[%emt 0:01:30]} exd5 {[%emt 0:00:30]} 9. cxd5 {[%emt 0:00:30]} Re8 {[%emt 0:01:30]} 10. Nd2 {[%emt 0:02:30]} Nbd7 {[%emt 0:02:30]} 11. e4 {[%emt 0:11:30]} a6 {[%emt 0:05:30]} 12. a4 {[%emt 0:00:00]} Qc7 {[%emt 0:05:30]} 13. Qc2 {[%emt 0:07:00]} Ne5 {[%emt 0:06:30]} 14. h3 {[%emt 0:10:30]} Rb8 {[%emt 0:06:30]} 15. f4 {[%emt 0:01:30]} Ned7 {[%emt 0:00:00]} 16. Kh1 {[%emt 0:03:30]} c4 {[%emt 0:03:00]} 17. e5 {[%emt 0:14:30]} dxe5 {[%emt 0:00:30]} 18. Nxc4 {[%emt 0:00:30]} Nh5 {[%emt 0:10:30]} 19. Bxh5 {[%emt 0:01:30]} Qxc4 {[%emt 0:03:30]} 20. Be2 {[%emt 0:00:30]} Qc7 {[%emt 0:06:30]} 21. fxe5 {[%emt 0:05:30]} Nxe5 {[%emt 0:02:30]} 22. Qb3 {[%emt 0:01:30]} Bf5 {[%emt 0:03:30]} 23. Bf4 {[%emt 0:04:30]} Qe7 {[%emt 0:01:30]} 24. Rad1 {[%emt 0:01:30]} Rbd8 {[%emt 0:00:30]} 25. d6 {[%emt 0:05:06]} Rxd6 {[%emt 0:11:30]} 26. Rxd6 {[%emt 0:00:13]} Qxd6 {[%emt 0:00:30]} 27. Qxb7 {[%emt 0:00:05]} Bc8 {[%emt 0:05:53]} 28. Qa7 {[%emt 0:02:35]} Qe6 {[%emt 0:02:15]} 29. Qc7 {[%emt 0:01:50]} h6 {[%emt 0:02:54]} 30. Rd1 {[%emt 0:02:26]} Kh7 {[%emt 0:02:18]} 31. Bf1 {[%emt 0:01:54]} Qf5 {[%emt 0:01:10]} 32. Bh2 {[%emt 0:02:37]} Qe6 {[%emt 0:05:04]} 1/2-1/2

[Event "28th CRO-chT 1A-Men 2019"]
[Site "Mali Losinj"]
[Date "2019.10.04"]
[Round "7.14"]
[White "Shchekachev, Andrei"]
[Black "Saric, Ante"]
[Result "1/2-1/2"]
[ECO "A30"]
[WhiteElo "2524"]
[BlackElo "2557"]
[Annotator "ChessBase"]
[PlyCount "22"]
[EventDate "2019.09.28"]
[EventType "team-tourn"]
[EventCountry "CRO"]
[SourceTitle "playchess.com"]
[Source "ChessBase"]
[SourceQuality "1"]
[TimeControl "40/5400+30:1800+30"]

1. Nf3 {[%emt 0:02:30]} Nf6 {[%emt 0:00:30]} 2. c4 {[%emt 0:00:30]} b6 {[%emt 0:00:00]} 3. g3 {[%emt 0:01:30]} c5 {[%emt 0:00:00]} 4. Bg2 {[%emt 0:00:30]} Bb7 {[%emt 0:00:30]} 5. O-O {[%emt 0:00:30]} g6 {[%emt 0:00:00]} 6. d4 {[%emt 0:00:30]} cxd4 {[%emt 0:00:00]} 7. Qxd4 {[%emt 0:00:30]} Bg7 {[%emt 0:00:00]} 8. Nc3 {[%emt 0:00:30]} d6 {[%emt 0:00:00]} 9. Rd1 {[%emt 0:04:30]} Nbd7 {[%emt 0:00:30]} 10. b3 {[%emt 0:00:00]} Rc8 {[%emt 0:01:30]} 11. Bb2 {[%emt 0:03:00]} O-O {[%emt 0:00:00]} 1/2-1/2

[Event "28th CRO-chT 1A-Men 2019"]
[Site "Mali Losinj"]
[Date "2019.10.04"]
[Round "7.15"]
[White "Galyas, Miklos"]
[Black "Muse, Drazen"]
[Result "1-0"]
[ECO "A13"]
[WhiteElo "2476"]
[BlackElo "2357"]
[Annotator "ChessBase"]
[PlyCount "73"]
[EventDate "2019.09.28"]
[EventType "team-tourn"]
[EventCountry "CRO"]
[SourceTitle "playchess.com"]
[Source "ChessBase"]
[SourceQuality "1"]
[TimeControl "40/5400+30:1800+30"]

1. c4 {[%emt 0:00:30]} g6 {[%emt 0:00:30]} 2. g3 {[%emt 0:00:00]} Bg7 {[%emt 0:00:00]} 3. Bg2 {[%emt 0:00:00]} e6 {[%emt 0:00:00]} 4. Nf3 {[%emt 0:01:30]} Ne7 {[%emt 0:00:00]} 5. O-O {[%emt 0:00:30]} O-O {[%emt 0:00:00]} 6. d4 {[%emt 0:00:30]} d5 {[%emt 0:00:00]} 7. Nc3 {[%emt 0:03:30]} Nbc6 {[%emt 0:02:00]} 8. cxd5 {[%emt 0:02:30]} exd5 {[%emt 0:00:00]} 9. b3 {[%emt 0:00:30]} Re8 {[%emt 0:02:00]} 10. Bb2 {[%emt 0:03:30]} Nf5 {[%emt 0:06:30]} 11. e3 {[%emt 0:02:30]} Nce7 {[%emt 0:01:30]} 12. Ne1 {[%emt 0:10:30]} c6 {[%emt 0:01:30]} 13. Nd3 {[%emt 0:00:30]} h5 {[%emt 0:00:30]} 14. Re1 {[%emt 0:07:30]} Nd6 {[%emt 0:00:00]} 15. Rc1 {[%emt 0:08:30]} Nef5 {[%emt 0:02:00]} 16. Ne5 {[%emt 0:05:30]} Bh6 {[%emt 0:02:30]} 17. Rc2 {[%emt 0:03:30]} Kh7 {[%emt 0:05:30]} 18. e4 {[%emt 0:06:30]} dxe4 {[%emt 0:01:30]} 19. Nxe4 {[%emt 0:04:30]} Be6 {[%emt 0:02:30]} 20. d5 {[%emt 0:04:30]} Bxd5 {[%emt 0:00:30]} 21. Nxc6 {[%emt 0:00:30]} Bxe4 {[%emt 0:09:30]} 22. Nxd8 {[%emt 0:00:00]} Bxc2 {[%emt 0:00:00]} 23. Rxe8 {[%emt 0:00:00]} Nxe8 {[%emt 0:00:00]} 24. Qd7 {[%emt 0:03:30]} Nfd6 {[%emt 0:00:30]} 25. Nxf7 {[%emt 0:00:30]} Nxf7 {[%emt 0:00:30]} 26. Qxf7+ {[%emt 0:00:30]} Ng7 {[%emt 0:00:00]} 27. Bxb7 {[%emt 0:03:30]} Rd8 {[%emt 0:01:00]} 28. Bd5 {[%emt 0:02:30]} Bf5 {[%emt 0:00:00]} 29. Kg2 {[%emt 0:05:30]} a5 {[%emt 0:00:00]} 30. h3 {[%emt 0:03:23]} Rc8 {[%emt 0:00:30]} 31. a3 {[%emt 0:00:42]} Rd8 {[%emt 0:00:30]} 32. b4 {[%emt 0:00:30]} axb4 {[%emt 0:00:30]} 33. axb4 {[%emt 0:00:30]} Rxd5 {[%emt 0:00:30]} 34. Qxd5 {[%emt 0:00:30]} Ne6 {[%emt 0:00:00]} 35. Qa8 {[%emt 0:01:28]} Bf8 {[%emt 0:00:00]} 36. b5 {[%emt 0:00:30]} g5 {[%emt 0:00:30]} 37. Qe8 {[%emt 0:00:16]} 1-0